fUST/lending_fUST_20250915
["ID","MTS","AMOUNT","RATE_DAILY","PERIOD"]
[385625018,1757931032336,-2696.01267533,0.00023921,2]
[385625020,1757931032348,-177.280129,0.00024162,2]
[385625023,1757931032360,-300.0,0.00024656,2]
[385625025,1757931032371,-7126.0,0.00024657,3]
[385625027,1757931032382,-480.0,0.00024657,3]
[385625029,1757931032393,-211.39677009,0.00024657,3]
[385625031,1757931032405,-480.0,0.00024657,3]
[385625033,1757931032415,-480.0,0.00024657,3]
[385625035,1757931032425,-480.0,0.00024657,3]
[385625038,1757931032437,-480.0,0.00024657,3]
[385625040,1757931032449,-1254.33,0.00024657,3]
[385625042,1757931032460,-295.10279992,0.00024657,3]
[385625044,1757931032471,-480.0,0.00024657,3]
[385625045,1757931032483,-480.0,0.00024657,3]
[385625046,1757931032495,-556.69590608,0.00024657,3]
[385625047,1757931032510,-480.0,0.00024657,3]
[385625048,1757931032521,-294.96565972,0.00024657,3]
[385625049,1757931032532,-480.0,0.00024657,3]
[385625050,1757931032543,-480.0,0.00024657,3]
[385625051,1757931032554,-480.0,0.00024657,3]
[385625052,1757931032565,-480.0,0.00024657,3]
[385625053,1757931032576,-383.50875535,0.00024831,2]
[385625054,1757931032587,-908.44908238,0.00024896,2]
[385625055,1757931032599,-362.07690809,0.00024913,2]
[385625056,1757931032610,-1200.0,0.0002493,2]
[385625057,1757931032620,-480.0,0.0002493,3]
[385625058,1757931032631,-480.0,0.0002493,3]
[385625059,1757931032641,-6701.28478125,0.00024931,2]
[385625060,1757931032654,-294.94992617,0.00024931,2]
[385625134,1757931035073,200.0,0.00027,120]
[385625137,1757931038023,-500.0,0.00024656,2]
[385625138,1757931038035,-360.50754785,0.00024656,2]
[385625139,1757931038046,-522.67470042,0.00024656,2]
[385625140,1757931038057,-192.58854164,0.00024656,2]
[385625141,1757931038075,-84.41109257,0.00024656,2]
[385625142,1757931038085,-334.5033932,0.00024657,3]
[385625143,1757931038128,-145.4966068,0.00024657,3]
[385625144,1757931038139,-1701.88,0.00024657,3]
[385625145,1757931038151,-7949.33813981,0.00024931,2]
[385625146,1757931038164,-2350.0,0.00024931,2]
[385625148,1757931041464,-8111.04210539,0.00024931,2]
[385625151,1757931043367,-9569.34,0.00024931,2]
[385625155,1757931045132,-15024.04504738,0.00024931,2]
[385625156,1757931045141,-480.0,0.00024931,3]
[385625157,1757931045151,-480.0,0.00024931,3]
[385625158,1757931045161,-480.0,0.00024931,3]
[385625159,1757931045170,-151.0,0.00024931,3]
[385625160,1757931045178,-480.0,0.00024931,3]
[385625161,1757931045188,-480.0,0.00024931,3]
[385625162,1757931045197,-480.0,0.00024931,3]
[385625163,1757931045207,-480.0,0.00024931,3]
[385625164,1757931045216,-480.0,0.00024931,3]
[385625165,1757931045226,-7126.0,0.00024931,3]
[385625166,1757931045236,-480.0,0.00024931,3]
[385625167,1757931045246,-480.0,0.00024931,3]
[385625168,1757931045255,-480.0,0.00024931,3]
[385625169,1757931045265,-480.0,0.00024931,3]
[385625170,1757931045275,-480.0,0.00024931,3]
[385625171,1757931045284,-1254.33,0.00024931,3]
[385625172,1757931045294,-480.0,0.00024931,3]
[385625173,1757931045303,-480.0,0.00024931,3]
[385625174,1757931045313,-480.0,0.00024931,3]
[385625175,1757931045323,-480.0,0.00024931,3]
[385625176,1757931045332,-480.0,0.00024931,3]
[385625177,1757931045341,-480.0,0.00024931,3]
[385625178,1757931045351,-480.0,0.00024931,3]
[385625179,1757931045360,-480.0,0.00024931,3]
[385625180,1757931045369,-1701.88,0.00024931,3]
[385625181,1757931045379,-1166.29,0.0002499,10]
[385625182,1757931045388,-1997.1,0.0002499,10]
[385625183,1757931045397,-1191.63363345,0.00025,10]
[385625184,1757931045406,-2669.0,0.00025,10]
[385625185,1757931045415,-168.0,0.00025039,2]
[385625186,1757931045425,-1664.25,0.00025085,10]
[385625187,1757931045434,-16000.0,0.0002509,2]
[385625188,1757931045447,-451242.091284,0.00025095,2]
[385625189,1757931045457,-530.2422204,0.00025095,2]
[385625190,1757931045467,-216.592,0.00025104,2]
[385625191,1757931045476,-2313.33,0.00025104,2]
[385625192,1757931045485,-370000.0,0.00025105,2]
[385625193,1757931045495,-600.0,0.00025149,20]
[385625194,1757931045504,-500.0,0.00025173,2]
[385625195,1757931045514,-500.0,0.00025173,2]
[385625196,1757931045523,-500.95830453,0.00025173,2]
[385625197,1757931045533,-500.0,0.00025173,2]
[385625198,1757931045542,-500.0,0.00025173,2]
[385625199,1757931045551,-500.0,0.00025173,2]
[385625200,1757931045561,-500.0,0.00025173,2]
[385625201,1757931045571,-157.17790768,0.00025173,2]
[385625202,1757931045580,-151.0,0.00025173,2]
[385625203,1757931045589,-151.0,0.00025173,2]
[385625204,1757931045598,-500.0,0.00025188,9]
[385625205,1757931045608,-500.98179676,0.00025188,9]
[385625206,1757931045617,-480.0,0.00025204,3]
[385625207,1757931045626,-480.0,0.00025204,3]
[385625208,1757931045636,-177.78883637,0.00025205,3]
[385625209,1757931045649,-480.0,0.00025205,3]
[385625210,1757931045660,-492.16,0.00025205,3]
[385625211,1757931045669,-480.0,0.00025205,3]
[385625212,1757931045683,-480.0,0.00025205,3]
[385625213,1757931045693,-480.0,0.00025205,3]
[385625214,1757931045704,-480.0,0.00025205,3]
[385625215,1757931045713,-480.0,0.00025205,3]
[385625216,1757931045723,-480.0,0.00025205,3]
[385625217,1757931045732,-480.0,0.00025205,3]
[385625218,1757931045741,-480.0,0.00025205,3]
[385625219,1757931045750,-7126.0,0.00025205,3]
[385625220,1757931045762,-480.0,0.00025205,3]
[385625221,1757931045771,-480.0,0.00025205,3]
[385625222,1757931045781,-480.0,0.00025205,3]
[385625223,1757931045790,-480.0,0.00025205,3]
[385625224,1757931045800,-480.0,0.00025205,3]
[385625225,1757931045809,-1254.33,0.00025205,3]
[385625226,1757931045819,-480.0,0.00025205,3]
[385625227,1757931045828,-480.0,0.00025205,3]
[385625228,1757931045837,-480.0,0.00025205,3]
[385625229,1757931045847,-480.0,0.00025205,3]
[385625230,1757931045857,-480.0,0.00025205,3]
[385625231,1757931045866,-480.0,0.00025205,3]
[385625232,1757931045876,-152.05,0.00025205,3]
[385625233,1757931045886,-480.0,0.00025205,3]
[385625234,1757931045896,-1701.88,0.00025205,3]
[385625235,1757931045905,-5000.0,0.00025255,30]
[385625236,1757931045915,-160.0,0.000253,2]
[385625237,1757931045924,-233.24851325,0.000254,7]
[385625238,1757931045934,-800.0,0.00025405,2]
[385625239,1757931045943,-800.0,0.00025405,2]
[385625240,1757931045954,-800.0,0.00025405,2]
[385625241,1757931045964,-600.0,0.0002543,2]
[385625242,1757931045974,-500.0,0.00025447,2]
[385625243,1757931045984,-500.0,0.00025447,2]
[385625244,1757931045994,-823.68562564,0.00025455,30]
[385625245,1757931046003,-900.0,0.00025469,3]
[385625246,1757931046013,-220.49723217,0.00025478,3]
[385625247,1757931046024,-480.0,0.00025478,3]
[385625248,1757931046034,-183.69,0.00025479,3]
[385625249,1757931046043,-492.16,0.00025479,3]
[385625250,1757931046053,-480.0,0.00025479,3]
[385625251,1757931046063,-480.0,0.00025479,3]
[385625252,1757931046073,-480.0,0.00025479,3]
[385625253,1757931046082,-623.28909831,0.00025479,3]
[385625254,1757931046092,-480.0,0.00025479,3]
[385625255,1757931046101,-480.0,0.00025479,3]
[385625256,1757931046110,-368.09619398,0.00025479,3]
[385625257,1757931046120,-480.0,0.00025479,3]
[385625258,1757931046129,-7126.0,0.00025479,3]
[385625259,1757931046139,-480.0,0.00025479,3]
[385625260,1757931046256,-480.0,0.00025479,3]
[385625261,1757931046266,-510.98,0.00025479,3]
[385625262,1757931046276,-525.59,0.00025479,3]
[385625263,1757931046285,-237.7,0.00025479,3]
[385625264,1757931046295,-1254.33,0.00025479,3]
[385625265,1757931046305,-480.0,0.00025479,3]
[385625266,1757931046315,-480.0,0.00025479,3]
[385625267,1757931046324,-480.0,0.00025479,3]
[385625268,1757931046334,-480.0,0.00025479,3]
[385625269,1757931046343,-480.0,0.00025479,3]
[385625270,1757931046353,-480.0,0.00025479,3]
[385625271,1757931046363,-480.0,0.00025479,3]
[385625272,1757931046372,-1701.88,0.00025479,3]
[385625273,1757931046382,-160.0,0.00025509,30]
[385625274,1757931046392,-168.0,0.00025519,2]
[385625275,1757931046401,-500.0,0.00025538,2]
[385625276,1757931046411,-500.0,0.00025538,2]
[385625277,1757931046420,-168.0,0.00025551,2]
[385625278,1757931046429,-168.0,0.0002556,2]
[385625279,1757931046439,-400.0,0.00025579,2]
[385625280,1757931046448,-383.50875531,0.00025589,2]
[385625281,1757931046458,-29610.70322886,0.000256,7]
[385625282,1757931046467,-500.0,0.000256,2]
[385625283,1757931046477,-402.0,0.0002567,13]
[385625284,1757931046486,-168.0,0.00025694,2]
[385625285,1757931046495,-607.43140806,0.00025695,2]
[385625286,1757931046505,-168.0,0.00025703,2]
[385625287,1757931046514,-1000.0,0.00025721,2]
[385625288,1757931046523,-1000.0,0.00025721,2]
[385625289,1757931046533,-1000.0,0.00025721,2]
[385625290,1757931046542,-500.0,0.00025721,2]
[385625291,1757931046552,-500.0,0.00025721,2]
[385625292,1757931046561,-480.0,0.00025752,3]
[385625293,1757931046571,-168.0,0.00025753,2]
[385625294,1757931046581,-492.16,0.00025753,3]
[385625295,1757931046590,-480.0,0.00025753,3]
[385625296,1757931046600,-480.0,0.00025753,3]
[385625297,1757931046609,-480.0,0.00025753,3]
[385625298,1757931046619,-480.0,0.00025753,3]
[385625299,1757931046628,-480.0,0.00025753,3]
[385625300,1757931046638,-480.0,0.00025753,3]
[385625301,1757931046647,-7126.0,0.00025753,3]
[385625302,1757931046657,-480.0,0.00025753,3]
[385625303,1757931046667,-480.0,0.00025753,3]
[385625304,1757931046678,-1254.33,0.00025753,3]
[385625305,1757931046688,-480.0,0.00025753,3]
[385625306,1757931046698,-480.0,0.00025753,3]
[385625307,1757931046708,-461.04,0.00025753,3]
[385625308,1757931046717,-480.0,0.00025753,3]
[385625309,1757931046728,-480.0,0.00025753,3]
[385625310,1757931046738,-480.0,0.00025753,3]
[385625311,1757931046747,-411.99,0.00025753,3]
[385625312,1757931046757,-1701.88,0.00025753,3]
[385625313,1757931046768,-653.08382945,0.0002578,2]
[385625314,1757931046778,-168.0,0.00025807,2]
[385625315,1757931046787,-260.0,0.00025848,2]
[385625316,1757931046797,-1310.5,0.000259,7]
[385625317,1757931046806,-891.82,0.000259,7]
[385625318,1757931046815,-168.0,0.00025905,2]
[385625319,1757931046824,-168.0,0.00025927,2]
[385625320,1757931046834,-168.0,0.00025941,2]
[385625321,1757931046843,-168.0,0.00025942,2]
[385625322,1757931046853,-500.0,0.00025995,2]
[385625323,1757931046862,-500.0,0.00025995,2]
[385625324,1757931046871,-894.54153482,0.00026,10]
[385625325,1757931046881,-1730.71,0.00026,7]
[385625326,1757931046891,-27026.83,0.00026,7]
[385625327,1757931046901,-2993.66281309,0.00026,2]
[385625328,1757931046910,-168.0,0.00026006,2]
[385625329,1757931046920,-480.0,0.00026026,3]
[385625330,1757931046929,-492.16,0.00026027,3]
[385625331,1757931046939,-480.0,0.00026027,3]
[385625332,1757931046948,-204.6269948,0.00026027,3]
[385625333,1757931046958,-151.0,0.00026027,7]
[385625334,1757931046967,-480.0,0.00026027,3]
[385625335,1757931046977,-480.0,0.00026027,3]
[385625336,1757931046986,-480.0,0.00026027,3]
[385625337,1757931046995,-480.0,0.00026027,3]
[385625338,1757931047005,-7126.0,0.00026027,3]
[385625339,1757931047014,-480.0,0.00026027,3]
[385625340,1757931047024,-480.0,0.00026027,3]
[385625341,1757931047034,-1254.33,0.00026027,3]
[385625342,1757931047043,-480.0,0.00026027,3]
[385625343,1757931047052,-480.0,0.00026027,3]
[385625344,1757931047062,-480.0,0.00026027,3]
[385625345,1757931047071,-480.0,0.00026027,3]
[385625346,1757931047080,-480.0,0.00026027,3]
[385625347,1757931047089,-1701.88,0.00026027,3]
[385625348,1757931047099,-150.0,0.00026056,2]
[385625349,1757931047109,-1000.0,0.00026085,2]
[385625350,1757931047118,-1000.0,0.00026085,2]
[385625351,1757931047127,-160.384065,0.00026092,7]
[385625352,1757931047137,-151.0,0.00026092,7]
[385625353,1757931047146,-151.0,0.00026092,7]
[385625354,1757931047155,-908.44908238,0.00026145,4]
[385625355,1757931047164,-168.0,0.00026153,2]
[385625356,1757931047174,-1000.0,0.000262,2]
[385625357,1757931047184,-1647.42701485,0.00026268,2]
[385625358,1757931047193,-1500.0,0.00026268,2]
[385625359,1757931047203,-1500.0,0.00026268,2]
[385625360,1757931047212,-500.0,0.00026269,2]
[385625361,1757931047221,-384.48816426,0.00026269,2]
[385625362,1757931047231,-1920.959049,0.0002628,5]
[385625363,1757931047239,-1000.0,0.000263,5]
[385625364,1757931047249,-214.61957159,0.000263,3]
[385625365,1757931047258,-492.16,0.00026301,3]
[385625366,1757931047267,-480.0,0.00026301,3]
[385625367,1757931047276,-480.0,0.00026301,3]
[385625368,1757931047285,-319.84,0.00026301,3]
[385625369,1757931047294,-480.0,0.00026301,3]
[385625370,1757931047303,-593.08,0.00026301,3]
[385625371,1757931047312,-7126.0,0.00026301,3]
[385625372,1757931047321,-480.0,0.00026301,3]
[385625373,1757931047330,-480.0,0.00026301,3]
[385625374,1757931047339,-1254.33,0.00026301,3]
[385625375,1757931047348,-480.0,0.00026301,3]
[385625376,1757931047357,-480.0,0.00026301,3]
[385625377,1757931047365,-480.0,0.00026301,3]
[385625378,1757931047374,-480.0,0.00026301,3]
[385625379,1757931047383,-480.0,0.00026301,3]
[385625380,1757931047393,-1701.88,0.00026301,3]
[385625381,1757931047403,-1000.0,0.0002632,5]
[385625382,1757931047411,-1000.0,0.0002634,5]
[385625383,1757931047421,-383.50875531,0.00026348,2]
[385625384,1757931047430,-1000.0,0.0002636,5]
[385625385,1757931047439,-1000.0,0.0002638,5]
[385625386,1757931047450,-360.0,0.00026396,2]
[385625387,1757931047459,-2000.0,0.000264,2]
[385625388,1757931047467,-489.0,0.000264,2]
[385625389,1757931047477,-1000.0,0.000264,5]
[385625390,1757931047485,-250.0,0.000264,10]
[385625391,1757931047494,-1000.0,0.0002642,5]
[385625392,1757931047503,-212.09688816,0.0002643,2]
[385625393,1757931047512,-150000.0,0.0002644,2]
[385625394,1757931047521,-1000.0,0.0002644,5]
[385625395,1757931047530,-151.0,0.0002644,7]
[385625396,1757931047539,-151.0,0.0002644,7]
[385625397,1757931047548,-151.0,0.0002644,7]
[385625398,1757931047557,-151.0,0.0002644,7]
[385625399,1757931047566,-151.0,0.0002644,7]
[385625400,1757931047575,-151.0,0.0002644,7]
[385625401,1757931047584,-301.999998,0.0002644,7]
[385625402,1757931047594,-1000.0,0.0002646,5]
[385625403,1757931047603,-501.06223542,0.00026473,2]
[385625404,1757931047612,-500.0,0.00026473,2]
[385625405,1757931047621,-501.73394212,0.00026473,2]
[385625406,1757931047631,-500.0,0.00026473,2]
[385625407,1757931047640,-501.99665933,0.00026473,2]
[385625408,1757931047649,-500.0,0.00026473,2]
[385625409,1757931047658,-501.12335706,0.00026473,2]
[385625410,1757931047668,-257.52389537,0.00026473,2]
[385625411,1757931047680,-500.0,0.00026473,2]
[385625412,1757931047690,-500.0,0.00026473,2]
[385625413,1757931047699,-500.0,0.00026473,2]
[385625414,1757931047709,-500.0,0.00026473,2]
[385625415,1757931047719,-500.0,0.00026473,2]
[385625416,1757931047729,-500.0,0.00026473,2]
[385625417,1757931047738,-160.20451492,0.00026473,2]
[385625418,1757931047749,-500.0,0.00026473,2]
[385625419,1757931047758,-500.0,0.00026473,2]
[385625420,1757931047767,-500.0,0.00026473,2]
[385625421,1757931047776,-500.0,0.00026473,2]
[385625422,1757931047786,-500.0,0.00026473,2]
[385625423,1757931047795,-500.0,0.00026473,2]
[385625424,1757931047805,-230.35488053,0.00026473,2]
[385625425,1757931047814,-500.0,0.00026473,2]
[385625426,1757931047823,-500.0,0.00026473,2]
[385625427,1757931047833,-500.0,0.00026473,2]
[385625428,1757931047843,-500.0,0.00026473,2]
[385625429,1757931047852,-203.1771519,0.00026473,2]
[385625430,1757931047861,-500.0,0.00026473,2]
[385625431,1757931047871,-500.0,0.00026473,2]
[385625432,1757931047881,-500.0,0.00026473,2]
[385625433,1757931047890,-500.0,0.00026473,2]
[385625434,1757931047899,-500.0,0.00026473,2]
[385625435,1757931047908,-500.0,0.00026473,2]
[385625436,1757931047918,-500.0,0.00026473,2]
[385625437,1757931047927,-500.0,0.00026473,2]
[385625438,1757931047936,-500.0,0.00026473,2]
[385625439,1757931047946,-1070.372727,0.0002648,5]
[385625440,1757931047958,-1000.0,0.0002648,5]
[385625441,1757931047967,-1153.493175,0.0002648,5]
[385625442,1757931047975,-160.0,0.00026492,3]
[385625443,1757931047985,-9464.3188188,0.000265,14]
[385625444,1757931047994,-1000.0,0.000265,5]
[385625445,1757931048003,-1000.0,0.000265,5]
[385625446,1757931048015,-1000.0,0.000265,5]
[385625447,1757931048025,-250.0,0.000265,10]
[385625448,1757931048035,-208.0,0.0002653,2]
[385625449,1757931048044,-500.0,0.00026543,2]
[385625450,1757931048053,-492.16,0.00026575,3]
[385625451,1757931048062,-480.0,0.00026575,3]
[385625452,1757931048072,-247.94955787,0.00026575,3]
[385625453,1757931048081,-480.0,0.00026575,3]
[385625454,1757931048090,-7126.0,0.00026575,3]
[385625455,1757931048100,-480.0,0.00026575,3]
[385625456,1757931048109,-480.0,0.00026575,3]
[385625457,1757931048118,-1254.33,0.00026575,3]
[385625458,1757931048133,-480.0,0.00026575,3]
[385625459,1757931048174,-480.0,0.00026575,3]
[385625460,1757931048219,-480.0,0.00026575,3]
[385625461,1757931048228,-591.63,0.00026575,3]
[385625462,1757931048238,-480.0,0.00026575,3]
[385625463,1757931048248,-1701.88,0.00026575,3]
[385625464,1757931048258,-250.0,0.000266,10]
[385625465,1757931048268,-417.15472785,0.000266,10]
[385625466,1757931048277,-168.0,0.000266,2]
[385625467,1757931048287,-1500.0,0.00026633,2]
[385625468,1757931048296,-1500.0,0.00026633,2]
[385625469,1757931048306,-168.0,0.00026665,2]
[385625470,1757931048316,-250.0,0.000267,10]
[385625471,1757931048325,-420.0,0.0002672,2]
[385625472,1757931048335,-168.0,0.00026721,2]
[385625473,1757931048344,-250.0,0.000268,10]
[385625474,1757931048353,-2000.0,0.00026816,2]
[385625475,1757931048363,-2000.0,0.00026816,2]
[385625476,1757931048373,-500.0,0.00026817,2]
[385625477,1757931048383,-168.0,0.00026842,2]
[385625478,1757931048393,-492.16,0.00026849,3]
[385625479,1757931048403,-480.0,0.00026849,3]
[385625480,1757931048413,-480.0,0.00026849,3]
[385625481,1757931048422,-7126.0,0.00026849,3]
[385625482,1757931048432,-480.0,0.00026849,3]
[385625483,1757931048442,-480.0,0.00026849,3]
[385625484,1757931048452,-1254.33,0.00026849,3]
[385625485,1757931048462,-228.37,0.00026849,3]
[385625486,1757931048472,-262.95,0.00026849,3]
[385625487,1757931048482,-480.0,0.00026849,3]
[385625488,1757931048491,-480.0,0.00026849,3]
[385625489,1757931048501,-1701.88,0.00026849,3]
[385625490,1757931048511,-168.0,0.00026871,2]
[385625491,1757931048521,-1310.5,0.000269,7]
[385625492,1757931048531,-891.82,0.000269,7]
[385625493,1757931048540,-250.0,0.000269,10]
[385625494,1757931048550,-208.0,0.0002694,2]
[385625495,1757931048559,-2000.0,0.00026941,2]
[385625496,1757931048569,-460.0,0.00026944,2]
[385625498,1757931048578,-160.76537437,0.00026973,2]
[385625499,1757931048588,-212.09688816,0.0002699,2]
[385625500,1757931048598,-13548.14588946,0.00027,10]
[385625501,1757931048608,-39295.1394354,0.00027,2]
[385625502,1757931048618,-82718.55647707,0.00027,14]
[385625503,1757931048628,-847.45018724,0.00027,10]
[385625504,1757931048638,-217.82061966,0.00027,10]
[385625505,1757931048648,-160.0,0.00027,10]
[385625506,1757931048692,-198.0,0.00027,7]
[385625507,1757931048701,-250.0,0.00027,10]
[385625508,1757931048712,-531.33695587,0.00027,10]
[385625509,1757931048722,-160.0,0.00027,10]
[385625510,1757931048732,-151.0,0.00027,7]
[385625511,1757931048742,-151.0,0.00027,7]
[385625512,1757931048752,-151.0,0.00027,7]
[385625513,1757931048762,-501.53273402,0.00027021,2]
[385625514,1757931048772,-1000.0,0.00027021,2]
[385625515,1757931048781,-1000.0,0.00027021,2]
[385625516,1757931048791,-1003.6027247,0.00027021,2]
[385625517,1757931048801,-1001.99525578,0.00027021,2]
[385625518,1757931048810,-1000.894167,0.00027021,2]
[385625519,1757931048820,-1001.2309403,0.00027021,2]
[385625520,1757931048830,-501.28193224,0.00027021,2]
[385625521,1757931048840,-1000.0,0.00027021,2]
[385625522,1757931048850,-501.22314137,0.00027021,2]
[385625523,1757931048860,-1000.0,0.00027021,2]
[385625524,1757931048870,-1000.0,0.00027021,2]
[385625525,1757931048880,-368.1945531,0.00027021,2]
[385625526,1757931048890,-500.99050421,0.00027021,2]
[385625527,1757931048900,-1000.0,0.00027021,2]
[385625528,1757931048910,-1000.0,0.00027021,2]
[385625529,1757931048919,-1143.24831229,0.00027021,2]
[385625530,1757931048929,-501.47231285,0.00027021,2]
[385625531,1757931048938,-1000.0,0.00027021,2]
[385625532,1757931048949,-1000.0,0.00027021,2]
[385625533,1757931048960,-1000.0,0.00027021,2]
[385625534,1757931048970,-1000.0,0.00027021,2]
[385625535,1757931048979,-1000.0,0.00027021,2]
[385625536,1757931048989,-657.07382482,0.00027021,2]
[385625537,1757931048998,-1000.0,0.00027021,2]
[385625538,1757931049007,-168.0,0.00027082,2]
[385625539,1757931049017,-500.0,0.00027091,2]
[385625540,1757931049027,-160.0,0.000271,7]
[385625541,1757931049036,-27026.83,0.000271,7]
[385625542,1757931049045,-1730.71,0.000271,7]
[385625543,1757931049055,-250.0,0.000271,10]
[385625544,1757931049065,-383.50875531,0.00027106,2]
[385625545,1757931049074,-492.16,0.00027123,3]
[385625546,1757931049084,-480.0,0.00027123,3]
[385625547,1757931049093,-480.0,0.00027123,3]
[385625548,1757931049103,-7126.0,0.00027123,3]
[385625549,1757931049112,-480.0,0.00027123,3]
[385625550,1757931049122,-480.0,0.00027123,3]
[385625551,1757931049132,-1254.33,0.00027123,3]
[385625552,1757931049142,-480.0,0.00027123,3]
[385625553,1757931049151,-480.0,0.00027123,3]
[385625554,1757931049161,-1701.88,0.00027123,3]
[385625555,1757931049170,-800.0,0.00027148,2]
[385625556,1757931049180,-800.0,0.00027148,2]
[385625557,1757931049190,-800.0,0.00027148,2]
[385625558,1757931049200,-1812.60051514,0.00027181,2]
[385625559,1757931049211,-2000.0,0.00027181,2]
[385625560,1757931049220,-168.0,0.00027198,2]
[385625561,1757931049231,-250.0,0.000272,10]
[385625562,1757931049240,-5097.63770184,0.00027226,9]
[385625563,1757931049250,-250.0,0.000273,10]
[385625564,1757931049260,-208.0,0.0002735,2]
[385625565,1757931049270,-764.1591554,0.00027364,2]
[385625566,1757931049279,-640.10932349,0.00027364,2]
[385625567,1757931049288,-500.0,0.00027365,2]
[385625568,1757931049298,-400.0,0.0002739,7]
[385625569,1757931049307,-150.0,0.0002739,2]
[385625570,1757931049317,-300.0,0.0002739,60]
[385625571,1757931049327,-197.52634756,0.0002739,2]
[385625572,1757931049336,-908.44908238,0.00027394,7]
[385625573,1757931049346,-154.2363737,0.00027397,2]
[385625574,1757931049356,-492.16,0.00027397,3]
[385625575,1757931049365,-480.0,0.00027397,3]
[385625576,1757931049375,-480.0,0.00027397,3]
[385625577,1757931049384,-7126.0,0.00027397,3]
[385625578,1757931049394,-480.0,0.00027397,3]
[385625579,1757931049404,-480.0,0.00027397,3]
[385625580,1757931049414,-1254.33,0.00027397,3]
[385625581,1757931049423,-480.0,0.00027397,3]
[385625582,1757931049433,-480.0,0.00027397,3]
[385625583,1757931049442,-1701.88,0.00027397,3]
[385625584,1757931049452,-1500.0,0.00027397,2]
[385625585,1757931049462,-296.39804487,0.00027397,2]
[385625586,1757931049471,-2000.0,0.000274,2]
[385625587,1757931049481,-350.0,0.000274,10]
[385625588,1757931049491,-325.37688619,0.00027401,120]
[385625589,1757931049500,-9945.04334061,0.00027433,2]
[385625590,1757931049510,-151.57,0.00027469,15]
[385625591,1757931049519,-156.59530758,0.00027487,2]
[385625592,1757931049529,-560.0,0.00027492,2]
[385625593,1757931049538,-220.1,0.00027496,15]
[385625594,1757931049548,-1513.13,0.00027497,15]
[385625595,1757931049558,-45300.83609717,0.000275,2]
[385625596,1757931049567,-178.21,0.00027533,15]
[385625597,1757931049577,-151.0,0.00027562,6]
[385625598,1757931049586,-809.15525644,0.00027568,5]
[385625599,1757931049596,-1500.0,0.00027568,5]
[385625600,1757931049606,-1500.0,0.00027568,5]
[385625601,1757931049615,-1500.0,0.00027568,5]
[385625602,1757931049625,-1500.0,0.00027568,5]
[385625603,1757931049635,-503.86427985,0.00027568,5]
[385625604,1757931049645,-1500.0,0.00027568,5]
[385625605,1757931049656,-1500.0,0.00027568,5]
[385625606,1757931049666,-1500.0,0.00027568,5]
[385625607,1757931049676,-1209.05238701,0.00027568,5]
[385625608,1757931049692,-1500.0,0.00027568,5]
[385625609,1757931049701,-1500.0,0.00027568,5]
[385625610,1757931049712,-500.0,0.00027568,5]
[385625611,1757931049722,-151.57,0.00027569,15]
[385625612,1757931049732,-220.10548555,0.00027596,15]
[385625613,1757931049742,-1513.13,0.00027597,15]